[Event "Early-Titled-Tuesday-Blitz-April-23-2024"]
[Site "Chess.com"]
[Date "2024.04.23"]
[Round "9"]
[White "Kushch_Nikolai"]
[Black "Chernov_Alexander_A"]
[Result "0-1"]
[WhiteElo "2372"]
[BlackElo "2270"]
[TimeControl "180+1"]
[EndTime "9:50:37 PDT"]
[Termination "Chernov_Alexander_A won by resignation"]

1. Nf3 {[%clk 0:02:58.7]} 1... d5 {[%clk 0:02:59.1]} 2. d4 {[%clk 0:02:57.7]}
2... c5 {[%clk 0:02:57.2]} 3. c4 {[%clk 0:02:56.3]} 3... e6 {[%clk 0:02:56.3]}
4. e3 {[%clk 0:02:55]} 4... Nc6 {[%clk 0:02:54.4]} 5. Nc3 {[%clk 0:02:54.8]}
5... Nf6 {[%clk 0:02:53.7]} 6. Bd3 {[%clk 0:02:54]} 6... dxc4 {[%clk 0:02:42.7]}
7. Bxc4 {[%clk 0:02:53.4]} 7... a6 {[%clk 0:02:42.7]} 8. a4 {[%clk 0:02:51.1]}
8... Be7 {[%clk 0:02:32.4]} 9. O-O {[%clk 0:02:50.9]} 9... cxd4 {[%clk
0:02:31.4]} 10. exd4 {[%clk 0:02:50.5]} 10... O-O {[%clk 0:02:30.2]} 11. Re1
{[%clk 0:02:48.7]} 11... Nb4 {[%clk 0:02:27.7]} 12. Be3 {[%clk 0:02:40.9]} 12...
Bd7 {[%clk 0:02:26.5]} 13. Bb3 {[%clk 0:02:32.9]} 13... Bc6 {[%clk 0:02:23.1]}
14. Ne5 {[%clk 0:02:32.1]} 14... Bd5 {[%clk 0:02:17.4]} 15. Nxd5 {[%clk
0:02:29]} 15... Nbxd5 {[%clk 0:02:14.5]} 16. Bd2 {[%clk 0:02:26.3]} 16... Rc8
{[%clk 0:02:11.4]} 17. Qe2 {[%clk 0:02:24.7]} 17... Qb6 {[%clk 0:01:53]} 18.
Bxd5 {[%clk 0:02:24.4]} 18... exd5 {[%clk 0:01:49.5]} 19. Bc3 {[%clk 0:02:23.1]}
19... Rfe8 {[%clk 0:01:35.2]} 20. a5 {[%clk 0:02:22.6]} 20... Qd6 {[%clk
0:01:08.9]} 21. Qf3 {[%clk 0:02:19.7]} 21... Bf8 {[%clk 0:01:03.6]} 22. h3
{[%clk 0:02:17.5]} 22... Re6 {[%clk 0:01:02]} 23. Re3 {[%clk 0:02:11.3]} 23...
Rce8 {[%clk 0:01:01.6]} 24. Rae1 {[%clk 0:02:10.1]} 24... Qc7 {[%clk 0:00:57.1]}
25. Qe2 {[%clk 0:01:36.6]} 25... Ne4 {[%clk 0:00:50.2]} 26. Ra1 {[%clk 0:01:31]}
26... Nxc3 {[%clk 0:00:42.6]} 27. bxc3 {[%clk 0:01:28.3]} 27... f6 {[%clk
0:00:41.6]} 28. Ng4 {[%clk 0:01:16.7]} 28... Rxe3 {[%clk 0:00:40.5]} 29. Nxe3
{[%clk 0:01:16.9]} 29... Qxc3 {[%clk 0:00:39.6]} 30. Rd1 {[%clk 0:01:08.8]}
30... Qxa5 {[%clk 0:00:38.6]} 31. Qf3 {[%clk 0:01:07.4]} 31... Rd8 {[%clk
0:00:36.7]} 32. g4 {[%clk 0:01:04]} 32... Qc7 {[%clk 0:00:35.4]} 33. h4 {[%clk
0:00:59.3]} 33... Qd6 {[%clk 0:00:34.6]} 34. Nf5 {[%clk 0:00:58.4]} 34... Qe6
{[%clk 0:00:32.5]} 35. Kf1 {[%clk 0:00:56.5]} 35... Qe4 {[%clk 0:00:32.3]} 36.
Qh3 {[%clk 0:00:53.7]} 36... g6 {[%clk 0:00:28.8]} 37. Re1 {[%clk 0:00:52]}
37... Qf4 {[%clk 0:00:26.9]} 38. Ne3 {[%clk 0:00:48.7]} 38... Qxd4 {[%clk
0:00:25.8]} 39. h5 {[%clk 0:00:48]} 39... Qd3+ {[%clk 0:00:24.2]} 40. Kg1 {[%clk
0:00:47]} 40... Qe4 {[%clk 0:00:23.2]} 41. hxg6 {[%clk 0:00:45.2]} 41... hxg6
{[%clk 0:00:22.5]} 42. f3 {[%clk 0:00:43.8]} 42... Qf4 {[%clk 0:00:21.2]} 43.
Ng2 {[%clk 0:00:42.5]} 43... Qd2 {[%clk 0:00:20.4]} 44. Qg3 {[%clk 0:00:37.5]}
44... Qd4+ {[%clk 0:00:19.5]} 45. Kh1 {[%clk 0:00:35.9]} 45... Qc5 {[%clk
0:00:17.8]} 46. Re6 {[%clk 0:00:30.7]} 46... Qc1+ {[%clk 0:00:15.5]} 47. Kh2
{[%clk 0:00:29.9]} 47... Qh6+ {[%clk 0:00:14.9]} 48. Kg1 {[%clk 0:00:27.3]}
48... Bc5+ {[%clk 0:00:12.2]} 49. Kf1 {[%clk 0:00:27.3]} 49... Qc1+ {[%clk
0:00:11.9]} 50. Ne1 {[%clk 0:00:26.3]} 50... Qc4+ {[%clk 0:00:11.2]} 51. Kg2
{[%clk 0:00:22.3]} 51... Qd4 {[%clk 0:00:11.2]} 52. Kh1 {[%clk 0:00:15.2]} 52...
Kf7 {[%clk 0:00:09.5]} 53. Re2 {[%clk 0:00:12]} 53... Rh8+ {[%clk 0:00:08.4]}
54. Rh2 {[%clk 0:00:12]} 54... Rxh2+ {[%clk 0:00:05.2]} 55. Qxh2 {[%clk
0:00:12.3]} 55... Qe3 {[%clk 0:00:05]} 56. Qh7+ {[%clk 0:00:12]} 56... Ke6
{[%clk 0:00:04]} 57. Qg8+ {[%clk 0:00:12.1]} 57... Kd6 {[%clk 0:00:04.1]} 58.
Qf8+ {[%clk 0:00:11]} 58... Kc6 {[%clk 0:00:04.2]} 59. Qc8+ {[%clk 0:00:10.1]}
59... Kb6 {[%clk 0:00:04.1]} 60. Qd8+ {[%clk 0:00:10.4]} 60... Kc6 {[%clk
0:00:04.3]} 61. Qc8+ {[%clk 0:00:08.9]} 61... Kb6 {[%clk 0:00:04.4]} 62. Qd8+
{[%clk 0:00:09.2]} 62... Ka7 {[%clk 0:00:04.4]} 0-1

[Event "Early-Titled-Tuesday-Blitz-April-23-2024"]
[Site "Chess.com"]
[Date "2024.04.23"]
[Round "9"]
[White "Prizant_academy"]
[Black "kids2010"]
[Result "1-0"]
[WhiteElo "2945"]
[BlackElo "2795"]
[TimeControl "180+1"]
[EndTime "9:50:40 PDT"]
[Termination "Prizant_academy won by checkmate"]

1. d4 {[%clk 0:03:00.9]} 1... d5 {[%clk 0:03:00]} 2. c4 {[%clk 0:03:01.1]} 2...
e6 {[%clk 0:03:00.2]} 3. Nf3 {[%clk 0:03:01.5]} 3... Nf6 {[%clk 0:03:00]} 4. Qc2
{[%clk 0:03:02.2]} 4... c5 {[%clk 0:02:50.4]} 5. dxc5 {[%clk 0:02:59.6]} 5...
Nc6 {[%clk 0:02:41.9]} 6. cxd5 {[%clk 0:02:57.2]} 6... Qxd5 {[%clk 0:02:42.8]}
7. Nc3 {[%clk 0:02:49.7]} 7... Qxc5 {[%clk 0:02:41.8]} 8. a3 {[%clk 0:02:33.3]}
8... Bd7 {[%clk 0:02:24.9]} 9. e3 {[%clk 0:02:24.6]} 9... Be7 {[%clk 0:01:59.4]}
10. Bd3 {[%clk 0:02:22.2]} 10... O-O {[%clk 0:01:53.9]} 11. O-O {[%clk
0:02:22.2]} 11... Rac8 {[%clk 0:01:52.7]} 12. Qe2 {[%clk 0:02:05.1]} 12... Qh5
{[%clk 0:01:50.3]} 13. Bd2 {[%clk 0:01:54.9]} 13... e5 {[%clk 0:01:49.2]} 14.
Ne4 {[%clk 0:01:51.7]} 14... Nxe4 {[%clk 0:01:30.3]} 15. Bxe4 {[%clk 0:01:52.6]}
15... Be6 {[%clk 0:01:30.2]} 16. Bc3 {[%clk 0:01:26.6]} 16... Bd6 {[%clk
0:01:03]} 17. Rfe1 {[%clk 0:01:12.9]} 17... f6 {[%clk 0:00:48.5]} 18. Rad1
{[%clk 0:00:58.3]} 18... Be7 {[%clk 0:00:46]} 19. Qb5 {[%clk 0:00:55.4]} 19...
Rc7 {[%clk 0:00:37.4]} 20. h3 {[%clk 0:00:43.3]} 20... Qf7 {[%clk 0:00:36.5]}
21. Qd3 {[%clk 0:00:33.9]} 21... g6 {[%clk 0:00:32.9]} 22. Qb1 {[%clk 0:00:30]}
22... Rfc8 {[%clk 0:00:30.1]} 23. Rd2 {[%clk 0:00:29.2]} 23... b6 {[%clk
0:00:23.4]} 24. Red1 {[%clk 0:00:23.8]} 24... Na5 {[%clk 0:00:23.8]} 25. Bxa5
{[%clk 0:00:16.6]} 25... bxa5 {[%clk 0:00:24.7]} 26. Qd3 {[%clk 0:00:15.5]}
26... Bc4 {[%clk 0:00:23.7]} 27. Qb1 {[%clk 0:00:12.7]} 27... Bb3 {[%clk
0:00:22.7]} 28. Bd5 {[%clk 0:00:09.7]} 28... Bxd5 {[%clk 0:00:21.1]} 29. Rxd5
{[%clk 0:00:10.6]} 29... a4 {[%clk 0:00:21.8]} 30. Qd3 {[%clk 0:00:09.2]} 30...
Qe6 {[%clk 0:00:21.1]} 31. e4 {[%clk 0:00:09.4]} 31... Rc2 {[%clk 0:00:20.1]}
32. Rd2 {[%clk 0:00:09.8]} 32... Rc1+ {[%clk 0:00:18.4]} 33. Kh2 {[%clk
0:00:10]} 33... R1c4 {[%clk 0:00:16]} 34. Rd7 {[%clk 0:00:09.6]} 34... R4c7
{[%clk 0:00:14.1]} 35. Rd5 {[%clk 0:00:07.2]} 35... Kf7 {[%clk 0:00:12.8]} 36.
Qb5 {[%clk 0:00:07.2]} 36... Qc6 {[%clk 0:00:13.2]} 37. Qa5 {[%clk 0:00:07]}
37... Rb7 {[%clk 0:00:12.1]} 38. g3 {[%clk 0:00:05.1]} 38... Ke8 {[%clk
0:00:08.8]} 39. Kg2 {[%clk 0:00:04.8]} 39... Rcb8 {[%clk 0:00:07.7]} 40. R2d3
{[%clk 0:00:03.7]} 40... Rxb2 {[%clk 0:00:07.6]} 41. Qxa7 {[%clk 0:00:04]} 41...
Qb6 {[%clk 0:00:07.1]} 42. Qd7+ {[%clk 0:00:03.8]} 42... Kf8 {[%clk 0:00:07.2]}
43. Rd2 {[%clk 0:00:04.6]} 43... Rxd2 {[%clk 0:00:07.3]} 44. Nxd2 {[%clk
0:00:04.7]} 44... Rd8 {[%clk 0:00:07.3]} 45. Qxa4 {[%clk 0:00:05.2]} 45... Rc8
{[%clk 0:00:04.6]} 46. Nc4 {[%clk 0:00:05.2]} 46... Qc6 {[%clk 0:00:03.7]} 47.
Qxc6 {[%clk 0:00:03.6]} 47... Rxc6 {[%clk 0:00:04.6]} 48. Na5 {[%clk 0:00:04.3]}
48... Ra6 {[%clk 0:00:04.3]} 49. a4 {[%clk 0:00:03.9]} 49... Bb4 {[%clk
0:00:05]} 50. Nc4 {[%clk 0:00:03.2]} 50... Rxa4 {[%clk 0:00:05.3]} 51. Nb6
{[%clk 0:00:02.5]} 51... Ra2 {[%clk 0:00:05.2]} 52. Kf3 {[%clk 0:00:03]} 52...
Be1 {[%clk 0:00:05.2]} 53. Rd8+ {[%clk 0:00:02.6]} 53... Ke7 {[%clk 0:00:05.2]}
54. Rd7+ {[%clk 0:00:03.5]} 54... Ke6 {[%clk 0:00:05.3]} 55. Rxh7 {[%clk
0:00:04.1]} 55... Rxf2+ {[%clk 0:00:02.4]} 56. Ke3 {[%clk 0:00:04.2]} 56... f5
{[%clk 0:00:03.3]} 57. Nd5 {[%clk 0:00:02.8]} 57... f4+ {[%clk 0:00:03.5]} 58.
gxf4 {[%clk 0:00:02.8]} 58... exf4+ {[%clk 0:00:03.9]} 59. Kd3 {[%clk 0:00:02]}
59... Rh2 {[%clk 0:00:01.9]} 60. Re7+ {[%clk 0:00:02]} 60... Kd6 {[%clk
0:00:02.5]} 61. Kc4 {[%clk 0:00:02.3]} 61... Bg3 {[%clk 0:00:03.2]} 62. e5+
{[%clk 0:00:02.8]} 62... Kc6 {[%clk 0:00:03]} 63. Rc7# {[%clk 0:00:03.7]} 1-0

[Event "Early-Titled-Tuesday-Blitz-April-23-2024"]
[Site "Chess.com"]
[Date "2024.04.23"]
[Round "9"]
[White "Aradhya2000"]
[Black "Anton_Demchenko"]
[Result "0-1"]
[WhiteElo "2845"]
[BlackElo "2982"]
[TimeControl "180+1"]
[EndTime "9:50:41 PDT"]
[Termination "Anton_Demchenko won by checkmate"]

1. d4 {[%clk 0:03:00.9]} 1... Nf6 {[%clk 0:03:00]} 2. c4 {[%clk 0:03:01.3]} 2...
d6 {[%clk 0:03:00.4]} 3. Nf3 {[%clk 0:03:01]} 3... Nc6 {[%clk 0:03:00.4]} 4. Nc3
{[%clk 0:03:00.4]} 4... e5 {[%clk 0:03:00.3]} 5. g3 {[%clk 0:02:57.5]} 5... Be7
{[%clk 0:03:00.1]} 6. Bg2 {[%clk 0:02:57.6]} 6... O-O {[%clk 0:03:00.2]} 7. O-O
{[%clk 0:02:58.2]} 7... h6 {[%clk 0:03:00.6]} 8. h3 {[%clk 0:02:55.7]} 8... Bf5
{[%clk 0:02:59.1]} 9. dxe5 {[%clk 0:02:27.2]} 9... dxe5 {[%clk 0:02:57.9]} 10.
Be3 {[%clk 0:02:15.5]} 10... Be6 {[%clk 0:02:45]} 11. b4 {[%clk 0:01:44.4]}
11... Bxb4 {[%clk 0:01:56.7]} 12. Qb3 {[%clk 0:01:44.2]} 12... Qc8 {[%clk
0:01:40.6]} 13. Nd5 {[%clk 0:01:39.1]} 13... Be7 {[%clk 0:01:31.4]} 14. Nxe5
{[%clk 0:01:27]} 14... Bxd5 {[%clk 0:01:26.8]} 15. Ng6 {[%clk 0:01:23.2]} 15...
fxg6 {[%clk 0:01:11]} 16. cxd5 {[%clk 0:01:22.9]} 16... Na5 {[%clk 0:01:11.7]}
17. Qa4 {[%clk 0:00:49.1]} 17... b6 {[%clk 0:01:07.3]} 18. d6 {[%clk 0:00:48.8]}
18... Bxd6 {[%clk 0:01:07.2]} 19. Bxa8 {[%clk 0:00:49.5]} 19... Qxa8 {[%clk
0:01:07.2]} 20. Rac1 {[%clk 0:00:47.6]} 20... Re8 {[%clk 0:00:58.8]} 21. Qc2
{[%clk 0:00:45.5]} 21... Kh7 {[%clk 0:00:53.9]} 22. Bd4 {[%clk 0:00:36.5]} 22...
Qe4 {[%clk 0:00:45.2]} 23. Rfd1 {[%clk 0:00:35.7]} 23... Qxe2 {[%clk 0:00:39.8]}
24. Qc3 {[%clk 0:00:23.7]} 24... Ne4 {[%clk 0:00:31.2]} 25. Qa1 {[%clk
0:00:23.7]} 25... Ng5 {[%clk 0:00:27.9]} 26. h4 {[%clk 0:00:21.2]} 26... Nf3+
{[%clk 0:00:27.5]} 27. Kg2 {[%clk 0:00:21.6]} 27... Qe4 {[%clk 0:00:27.7]} 28.
Be3 {[%clk 0:00:12.6]} 28... Nxh4+ {[%clk 0:00:25]} 29. Kf1 {[%clk 0:00:12.3]}
29... Qh1+ {[%clk 0:00:23.6]} 30. Ke2 {[%clk 0:00:12.5]} 30... Qf3+ {[%clk
0:00:24.3]} 31. Kd2 {[%clk 0:00:12.6]} 31... Nf5 {[%clk 0:00:22.2]} 32. Re1
{[%clk 0:00:08.9]} 32... Bb4+ {[%clk 0:00:21.9]} 33. Rc3 {[%clk 0:00:06.3]}
33... Nc4+ {[%clk 0:00:18.9]} 34. Kc2 {[%clk 0:00:05.7]} 34... Ncxe3+ {[%clk
0:00:19.6]} 35. fxe3 {[%clk 0:00:04.4]} 35... Bxc3 {[%clk 0:00:19.7]} 36. Qxc3
{[%clk 0:00:03.7]} 36... Rxe3 {[%clk 0:00:20.3]} 37. Rxe3 {[%clk 0:00:04.1]}
37... Qxe3 {[%clk 0:00:20.9]} 38. Qxc7 {[%clk 0:00:03.9]} 38... Nd4+ {[%clk
0:00:16.3]} 39. Kb2 {[%clk 0:00:03.5]} 39... Qd2+ {[%clk 0:00:16.7]} 40. Kb1
{[%clk 0:00:03.9]} 40... Qd3+ {[%clk 0:00:14.5]} 41. Kb2 {[%clk 0:00:03.8]}
41... Qb5+ {[%clk 0:00:15.1]} 42. Kc1 {[%clk 0:00:02.7]} 42... Qc5+ {[%clk
0:00:15.5]} 43. Qxc5 {[%clk 0:00:02.4]} 43... bxc5 {[%clk 0:00:16.4]} 44. Kd2
{[%clk 0:00:03]} 44... h5 {[%clk 0:00:16.4]} 45. Kd3 {[%clk 0:00:03.6]} 45...
Nf5 {[%clk 0:00:16.2]} 46. Kc4 {[%clk 0:00:03.2]} 46... Nxg3 {[%clk 0:00:16.5]}
47. Kxc5 {[%clk 0:00:03.9]} 47... h4 {[%clk 0:00:17.4]} 48. Kd4 {[%clk
0:00:04.6]} 48... h3 {[%clk 0:00:18.2]} 49. Ke3 {[%clk 0:00:05.4]} 49... h2
{[%clk 0:00:18.6]} 50. Kf2 {[%clk 0:00:06.1]} 50... Nf5 {[%clk 0:00:18.5]} 51.
Kg2 {[%clk 0:00:06.3]} 51... Nd6 {[%clk 0:00:17.5]} 52. Kxh2 {[%clk 0:00:06.6]}
52... Nb5 {[%clk 0:00:18.3]} 53. Kg3 {[%clk 0:00:07.1]} 53... Nc3 {[%clk
0:00:18.9]} 54. a3 {[%clk 0:00:07.5]} 54... Nb5 {[%clk 0:00:19.5]} 55. a4 {[%clk
0:00:06.9]} 55... Nc3 {[%clk 0:00:20.1]} 56. a5 {[%clk 0:00:07.5]} 56... g5
{[%clk 0:00:18.9]} 57. Kf3 {[%clk 0:00:07.5]} 57... Kg6 {[%clk 0:00:19.7]} 58.
Ke3 {[%clk 0:00:08]} 58... g4 {[%clk 0:00:19.6]} 59. Kd4 {[%clk 0:00:08.5]}
59... Ne2+ {[%clk 0:00:18.2]} 60. Ke3 {[%clk 0:00:08.6]} 60... Nc1 {[%clk
0:00:17.8]} 61. Kf4 {[%clk 0:00:08.8]} 61... Kh5 {[%clk 0:00:18]} 62. Kg3 {[%clk
0:00:09.2]} 62... Nb3 {[%clk 0:00:18.5]} 63. a6 {[%clk 0:00:05.7]} 63... Nc5
{[%clk 0:00:18.9]} 64. Kg2 {[%clk 0:00:06.2]} 64... Nxa6 {[%clk 0:00:19.5]} 65.
Kg3 {[%clk 0:00:06.6]} 65... Nc5 {[%clk 0:00:20]} 66. Kg2 {[%clk 0:00:07.3]}
66... g5 {[%clk 0:00:20.4]} 67. Kg3 {[%clk 0:00:08.2]} 67... a5 {[%clk
0:00:20.8]} 68. Kg2 {[%clk 0:00:09.1]} 68... a4 {[%clk 0:00:21.4]} 69. Kg3
{[%clk 0:00:10]} 69... a3 {[%clk 0:00:22]} 70. Kg2 {[%clk 0:00:10.9]} 70... a2
{[%clk 0:00:22.6]} 71. Kg3 {[%clk 0:00:11.8]} 71... a1=Q {[%clk 0:00:22.7]} 72.
Kg2 {[%clk 0:00:12.7]} 72... Qa3 {[%clk 0:00:23.1]} 73. Kh2 {[%clk 0:00:12.5]}
73... Kg6 {[%clk 0:00:23.4]} 74. Kg2 {[%clk 0:00:12.8]} 74... Kf5 {[%clk
0:00:24.2]} 75. Kg1 {[%clk 0:00:13.2]} 75... g3 {[%clk 0:00:23.6]} 76. Kg2
{[%clk 0:00:13.5]} 76... Kg4 {[%clk 0:00:22.8]} 77. Kg1 {[%clk 0:00:14]} 77...
Kf3 {[%clk 0:00:22.9]} 78. Kf1 {[%clk 0:00:13.9]} 78... Qc1# {[%clk 0:00:22.4]}
0-1

[Event "Early-Titled-Tuesday-Blitz-April-23-2024"]
[Site "Chess.com"]
[Date "2024.04.23"]
[Round "9"]
[White "IM_ArthurDW08"]
[Black "GMKrikor"]
[Result "0-1"]
[WhiteElo "2730"]
[BlackElo "2901"]
[TimeControl "180+1"]
[EndTime "9:50:50 PDT"]
[Termination "GMKrikor won by resignation"]

1. e4 {[%clk 0:03:00.9]} 1... c5 {[%clk 0:02:58]} 2. Nf3 {[%clk 0:02:59.3]} 2...
Nc6 {[%clk 0:02:54.2]} 3. d4 {[%clk 0:02:54.9]} 3... cxd4 {[%clk 0:02:53.9]} 4.
Nxd4 {[%clk 0:02:55.8]} 4... Nf6 {[%clk 0:02:54.1]} 5. Nc3 {[%clk 0:02:55]} 5...
e5 {[%clk 0:02:54.2]} 6. Nde2 {[%clk 0:02:47.7]} 6... Bc5 {[%clk 0:02:43.8]} 7.
Ng3 {[%clk 0:02:46.7]} 7... d6 {[%clk 0:02:35.1]} 8. Be2 {[%clk 0:02:37.1]} 8...
O-O {[%clk 0:02:34.5]} 9. O-O {[%clk 0:02:35.4]} 9... h6 {[%clk 0:02:29.5]} 10.
Na4 {[%clk 0:02:30.8]} 10... Qe7 {[%clk 0:02:11.8]} 11. c3 {[%clk 0:02:28.4]}
11... a6 {[%clk 0:01:49.7]} 12. Nxc5 {[%clk 0:02:20.9]} 12... dxc5 {[%clk
0:01:50.6]} 13. Be3 {[%clk 0:02:21.3]} 13... Be6 {[%clk 0:01:48.5]} 14. Qc2
{[%clk 0:02:17]} 14... b6 {[%clk 0:01:46.6]} 15. a3 {[%clk 0:02:07.1]} 15... a5
{[%clk 0:01:44.6]} 16. h3 {[%clk 0:01:59.7]} 16... Qc7 {[%clk 0:01:42.3]} 17.
Nh5 {[%clk 0:01:51.9]} 17... Nxh5 {[%clk 0:01:39.7]} 18. Bxh5 {[%clk 0:01:52.8]}
18... a4 {[%clk 0:01:30]} 19. Bg4 {[%clk 0:01:15.3]} 19... Bxg4 {[%clk
0:01:15.3]} 20. hxg4 {[%clk 0:01:16.2]} 20... Qd7 {[%clk 0:01:14.1]} 21. f3
{[%clk 0:01:14.5]} 21... Qe6 {[%clk 0:01:12.4]} 22. Rfd1 {[%clk 0:01:05.2]}
22... Na5 {[%clk 0:01:00.5]} 23. Rd5 {[%clk 0:01:00.9]} 23... Nc4 {[%clk
0:01:00.3]} 24. Bf2 {[%clk 0:00:59.5]} 24... Rfd8 {[%clk 0:00:50.1]} 25. Rad1
{[%clk 0:00:54.1]} 25... Rxd5 {[%clk 0:00:50]} 26. exd5 {[%clk 0:00:54.7]} 26...
Qd7 {[%clk 0:00:34.8]} 27. Qe2 {[%clk 0:00:50.8]} 27... Qb5 {[%clk 0:00:28.1]}
28. Bg3 {[%clk 0:00:39.6]} 28... f6 {[%clk 0:00:18.3]} 29. Kh2 {[%clk 0:00:31]}
29... Rd8 {[%clk 0:00:17.2]} 30. f4 {[%clk 0:00:24]} 30... exf4 {[%clk
0:00:17.1]} 31. Qe6+ {[%clk 0:00:18]} 31... Kh8 {[%clk 0:00:16.6]} 32. Bxf4
{[%clk 0:00:18.9]} 32... Qd7 {[%clk 0:00:16.5]} 33. Qe4 {[%clk 0:00:10.4]} 33...
b5 {[%clk 0:00:10.5]} 34. d6 {[%clk 0:00:09.9]} 34... Nxb2 {[%clk 0:00:10.7]}
35. Rd5 {[%clk 0:00:08.1]} 35... Nc4 {[%clk 0:00:10.8]} 36. Qe7 {[%clk
0:00:07.5]} 36... Kg8 {[%clk 0:00:07.6]} 37. Qxd7 {[%clk 0:00:07]} 37... Rxd7
{[%clk 0:00:07.9]} 38. Rxc5 {[%clk 0:00:07.9]} 38... Kf7 {[%clk 0:00:05.4]} 39.
Rxb5 {[%clk 0:00:07.5]} 39... Nxd6 {[%clk 0:00:06]} 40. Rb4 {[%clk 0:00:03.5]}
40... Ke6 {[%clk 0:00:04.2]} 41. Rxa4 {[%clk 0:00:03.4]} 41... Nb5 {[%clk
0:00:04.9]} 42. Ra6+ {[%clk 0:00:03.2]} 42... Kd5 {[%clk 0:00:04.7]} 43. Ra5
{[%clk 0:00:01.5]} 43... Kc4 {[%clk 0:00:04.8]} 44. Bg3 {[%clk 0:00:02.1]} 44...
Nxc3 {[%clk 0:00:04.7]} 45. Ra8 {[%clk 0:00:03]} 45... Ne4 {[%clk 0:00:04.1]}
46. Ra4+ {[%clk 0:00:02.9]} 46... Kd3 {[%clk 0:00:03.1]} 47. Ra8 {[%clk
0:00:02.9]} 47... Rb7 {[%clk 0:00:01.7]} 48. Rd8+ {[%clk 0:00:02.8]} 48... Ke2
{[%clk 0:00:02.3]} 49. Re8 {[%clk 0:00:03.1]} 49... Kd3 {[%clk 0:00:03]} 50. a4
{[%clk 0:00:04]} 50... Rb2 {[%clk 0:00:02.6]} 51. Rd8+ {[%clk 0:00:04.3]} 51...
Ke3 {[%clk 0:00:02.8]} 52. a5 {[%clk 0:00:04.5]} 52... Ra2 {[%clk 0:00:03.3]}
53. Rd5 {[%clk 0:00:04.8]} 53... Nxg3 {[%clk 0:00:02.2]} 54. Kxg3 {[%clk
0:00:04.9]} 54... Ke4 {[%clk 0:00:03.1]} 55. Rb5 {[%clk 0:00:04.9]} 55... Kd4
{[%clk 0:00:02.6]} 56. Kh3 {[%clk 0:00:05.4]} 56... Kc4 {[%clk 0:00:02.8]} 57.
Rf5 {[%clk 0:00:06.1]} 57... Ra3+ {[%clk 0:00:02]} 58. Kh4 {[%clk 0:00:05.4]}
58... Ra2 {[%clk 0:00:02.6]} 59. Kg3 {[%clk 0:00:03.6]} 59... Kb4 {[%clk
0:00:03]} 60. Kh3 {[%clk 0:00:02.9]} 60... Rxa5 {[%clk 0:00:03]} 61. Rf4+ {[%clk
0:00:03]} 61... Kc5 {[%clk 0:00:02.9]} 62. Rf5+ {[%clk 0:00:02.7]} 62... Kb6
{[%clk 0:00:03.3]} 63. Rxa5 {[%clk 0:00:03.6]} 63... Kxa5 {[%clk 0:00:03.5]} 64.
Kh4 {[%clk 0:00:04.5]} 64... g6 {[%clk 0:00:03.8]} 65. Kg3 {[%clk 0:00:04.1]}
65... Kb5 {[%clk 0:00:04.4]} 66. Kf4 {[%clk 0:00:05]} 66... Kc5 {[%clk
0:00:04.9]} 67. Ke4 {[%clk 0:00:05.9]} 67... Kc4 {[%clk 0:00:04.8]} 68. g3
{[%clk 0:00:03.9]} 68... Kc5 {[%clk 0:00:04.3]} 69. Ke3 {[%clk 0:00:04.1]} 69...
Kd5 {[%clk 0:00:04.9]} 70. Kd3 {[%clk 0:00:05]} 70... Ke5 {[%clk 0:00:05.1]} 71.
Ke3 {[%clk 0:00:05.9]} 71... f5 {[%clk 0:00:03]} 72. gxf5 {[%clk 0:00:05.8]}
72... Kxf5 {[%clk 0:00:03.7]} 73. Kf3 {[%clk 0:00:06.7]} 73... h5 {[%clk
0:00:04.3]} 74. Kg2 {[%clk 0:00:06.7]} 74... Kg4 {[%clk 0:00:03.9]} 75. Kh2
{[%clk 0:00:07.6]} 75... Kf3 {[%clk 0:00:04.1]} 76. Kh3 {[%clk 0:00:08.5]} 76...
g5 {[%clk 0:00:04.7]} 77. Kh2 {[%clk 0:00:09.4]} 77... g4 {[%clk 0:00:05.1]} 0-1